bitfinex-derivatives/quotes_BTCF0:USTF0_20230702
["timestamp","ask_amount","ask_price","bid_price","bid_amount"]
[1688291638078,0.61877867,30573.0,30572.0,0.049066]
[1688291638974,0.61857138,30573.0,30572.0,0.049066]
[1688291639175,0.25777138,30573.0,30572.0,0.049066]
[1688291639383,0.61857138,30573.0,30572.0,0.049066]
[1688291639888,0.25777138,30573.0,30572.0,0.049066]
[1688291640184,0.61857138,30573.0,30572.0,0.049066]
[1688291643888,0.25777138,30573.0,30572.0,0.049066]
[1688291644083,0.61857138,30573.0,30572.0,0.049066]
[1688291644674,0.25777138,30573.0,30572.0,0.049066]
[1688291644873,0.61857138,30573.0,30572.0,0.049066]
[1688291645193,0.61857138,30573.0,30571.0,0.36198]
[1688291645376,0.2116,30572.0,30571.0,0.36198]
[1688291645581,0.25645925,30572.0,30571.0,0.36198]
[1688291651099,0.25645925,30572.0,30571.0,0.36189793]
[1688291652495,0.2376098,30572.0,30571.0,0.36914481]
[1688291652689,0.2376098,30572.0,30571.0,0.36189793]
[1688291652690,0.2179828,30572.0,30571.0,0.36189793]
[1688291652989,0.2179828,30572.0,30571.0,0.39897707]
[1688291653294,0.2179828,30572.0,30571.0,0.38074738]
[1688291653993,0.2179828,30572.0,30571.0,0.36189793]
[1688291654393,0.23683225,30572.0,30571.0,0.36189793]
[1688291656495,0.62403045,30572.0,30571.0,0.36189793]
[1688291659086,0.26323045,30572.0,30571.0,0.36189793]
[1688291659288,0.62403045,30572.0,30571.0,0.36189793]
[1688291662407,0.26323045,30572.0,30571.0,0.36189793]
[1688291663302,0.244381,30572.0,30571.0,0.36189793]
[1688291664702,0.244381,30572.0,30571.0,0.36179795]
[1688291665703,0.26323045,30572.0,30571.0,0.36179795]
[1688291667507,0.244381,30572.0,30571.0,0.36179795]
[1688291668601,0.26323045,30572.0,30571.0,0.36179795]
[1688291672511,0.244381,30572.0,30571.0,0.3806474]
[1688291675213,0.26323045,30572.0,30571.0,0.36179795]
[1688291676110,0.28285745,30572.0,30571.0,0.36179795]
[1688291678116,0.244381,30572.0,30571.0,0.3806474]
[1688291678815,0.244381,30572.0,30571.0,0.38049238]
[1688291684633,0.244381,30572.0,30571.0,0.36164293]
[1688291685935,0.26323045,30572.0,30571.0,0.36164293]
[1688291687230,0.28285745,30572.0,30571.0,0.36164293]
[1688291689422,0.264008,30572.0,30571.0,0.38049238]
[1688291690531,0.28285745,30572.0,30571.0,0.36164293]
[1688291693241,0.28285745,30572.0,30571.0,0.36142403]
[1688291696640,0.264008,30572.0,30571.0,0.36142403]
[1688291697631,0.28285745,30572.0,30571.0,0.36142403]
[1688291701343,0.264008,30572.0,30571.0,0.38027348]
[1688291702342,0.264008,30572.0,30571.0,0.36142403]
[1688291702851,0.28285745,30572.0,30571.0,0.36142403]
[1688291705145,0.64365745,30572.0,30571.0,0.36142403]
[1688291708751,0.64365745,30572.0,30571.0,0.05888]
[1688291708951,0.01884945,30571.0,30568.0,0.019629]
[1688291709141,0.7852,30569.0,30568.0,0.019629]
[1688291709452,0.80831142,30569.0,30568.0,0.00785217]
[1688291709654,0.92869825,30569.0,30568.0,0.00785217]
[1688291711053,0.92521583,30569.0,30568.0,0.00785217]
[1688291713268,0.90636638,30569.0,30566.0,0.04122465]
[1688291713473,0.48196638,30569.0,30568.0,0.019629]
[1688291713758,0.90576638,30569.0,30568.0,0.019629]
[1688291714155,0.92461583,30569.0,30568.0,0.019629]
[1688291714659,0.92461583,30569.0,30566.0,0.04122465]
[1688291714856,0.2122,30567.0,30566.0,0.04122465]
[1688291715160,0.23183,30567.0,30566.0,0.04122465]
[1688291715560,0.60677496,30567.0,30566.0,0.04122465]
[1688291716658,0.96757496,30567.0,30566.0,0.04122465]
[1688291716854,1.06911234,30567.0,30566.0,0.04122465]
[1688291718761,0.2109,30566.0,30565.0,0.38258569]
[1688291718952,0.442731,30566.0,30565.0,0.38258569]
[1688291719660,0.46158045,30566.0,30565.0,0.38258569]
[1688291725459,0.442731,30566.0,30565.0,0.40143514]
[1688291726364,0.54429064,30566.0,30565.0,0.40143514]
[1688291727659,0.54429064,30566.0,30565.0,0.38258569]
[1688291728570,0.54429064,30566.0,30565.0,0.38238375]
[1688291730474,0.56314009,30566.0,30565.0,0.38238375]
[1688291731475,0.56354141,30566.0,30565.0,0.38238375]
[1688291731670,0.58953393,30566.0,30565.0,0.38238375]
[1688291732177,0.48797429,30566.0,30565.0,0.38238375]
[1688291732379,0.58953393,30566.0,30565.0,0.38238375]
[1688291733074,0.58953393,30566.0,30565.0,0.32369069]
[1688291733967,0.48797429,30566.0,30565.0,0.32369069]
[1688291736162,0.58953868,30566.0,30562.0,0.069633]
[1688291736378,0.2122,30563.0,30562.0,0.05]
[1688291736579,0.231833,30563.0,30562.0,0.3628]
[1688291736888,0.25068245,30563.0,30562.0,0.3628]
[1688291737178,0.25068245,30563.0,30562.0,0.382433]
[1688291737371,0.25068245,30563.0,30562.0,0.332433]
[1688291737678,0.25108054,30563.0,30562.0,0.332433]
[1688291737879,0.56528054,30563.0,30562.0,0.332433]
[1688291750886,0.61188054,30563.0,30559.0,0.02619518]
[1688291751086,0.61188054,30563.0,30558.0,0.368]
[1688291751087,0.573,30560.0,30558.0,0.108907]
[1688291751286,0.380435,30560.0,30559.0,0.049088]
[1688291751491,0.00039399,30559.0,30558.0,0.416307]
[1688291751684,0.25107844,30559.0,30558.0,0.416307]
[1688291751884,0.25107844,30559.0,30558.0,0.42567129]
[1688291752103,0.27684871,30559.0,30558.0,0.42567129]
[1688291752385,0.27684871,30559.0,30558.0,0.33640029]
[1688291755085,0.27684871,30559.0,30558.0,0.31676429]
[1688291755482,0.59104871,30559.0,30558.0,0.31676429]
[1688291760091,0.95184871,30559.0,30558.0,0.00936429]
[1688291760403,0.230536,30557.0,30556.0,0.058912]
[1688291760583,0.442736,30557.0,30556.0,0.34199926]
[1688291760890,0.46158545,30557.0,30556.0,0.34199926]
[1688291761594,0.46197877,30557.0,30556.0,0.34199926]
[1688291765589,0.46197877,30557.0,30556.0,0.34192826]
[1688291767699,0.46197877,30557.0,30556.0,0.32229126]
[1688291772294,0.82277877,30557.0,30556.0,0.32229126]
[1688291775004,0.82277877,30557.0,30556.0,0.34192826]
[1688291778211,0.82277877,30557.0,30556.0,0.34184884]
[1688291778511,0.82260507,30557.0,30556.0,0.34184884]
[1688291785813,0.82227877,30557.0,30556.0,0.34184884]
[1688291786803,0.82227877,30557.0,30556.0,0.32221184]
[1688291790903,0.82227877,30557.0,30556.0,0.34184884]
[1688291791106,0.46147877,30557.0,30556.0,0.34184884]
[1688291791303,0.82227877,30557.0,30556.0,0.34184884]
[1688291792104,0.82227877,30557.0,30556.0,0.32221184]
[1688291792512,0.80342932,30557.0,30552.0,0.01981883]
[1688291792716,0.5722,30553.0,30552.0,0.01981883]
[1688291792914,0.591839,30553.0,30552.0,0.01981883]
[1688291793311,0.61068845,30553.0,30552.0,0.01981883]
[1688291793505,0.61108113,30553.0,30552.0,0.01981883]
[1688291796215,0.61108113,30553.0,30552.0,0.00017983]
[1688291796518,0.91588113,30553.0,30552.0,0.00017983]
[1688291798013,0.91588113,30553.0,30552.0,0.01981883]
[1688291798320,0.91588113,30553.0,30552.0,0.02723804]
[1688291801132,0.91582113,30553.0,30552.0,0.02723804]
[1688291803019,0.9426706,30553.0,30552.0,0.02723804]
[1688291815132,0.9426706,30553.0,30552.0,0.0271098]
[1688291816726,0.5818706,30553.0,30552.0,0.0271098]
[1688291824232,0.56302115,30553.0,30552.0,0.0271098]
[1688291825344,0.56302115,30553.0,30552.0,0.04595925]
[1688291825546,0.56302115,30553.0,30552.0,0.0271098]
[1688291825937,0.5818706,30553.0,30552.0,0.0271098]
[1688291833837,0.5818706,30553.0,30552.0,0.02687007]
[1688291834944,0.58170605,30553.0,30552.0,0.02687007]
[1688291845848,0.27690605,30553.0,30552.0,0.02687007]
[1688291846148,0.2580566,30553.0,30552.0,0.02687007]
[1688291846350,0.2580566,30553.0,30552.0,0.04509976]
[1688291847449,0.2580566,30553.0,30552.0,0.02687007]
[1688291847748,0.27690605,30553.0,30552.0,0.04509976]
[1688291847949,0.27690605,30553.0,30552.0,0.02670201]
[1688291848149,0.27690605,30553.0,30552.0,0.0449317]
[1688291848335,0.27690605,30553.0,30552.0,0.02670201]
[1688291849951,0.27690605,30553.0,30552.0,0.0449317]
[1688291850252,0.27690605,30553.0,30552.0,0.02670201]
[1688291852048,0.2580566,30553.0,30552.0,0.0449317]
[1688291852549,0.2580566,30553.0,30552.0,0.02670201]
[1688291852750,0.2580566,30553.0,30552.0,0.0449317]
[1688291853056,0.2580566,30553.0,30552.0,0.02670201]
[1688291853253,0.2580566,30553.0,30552.0,0.0449317]
[1688291855154,0.2580566,30553.0,30552.0,0.06378115]
[1688291856148,0.2384176,30553.0,30552.0,0.06378115]
[1688291859660,0.2580566,30553.0,30552.0,0.06378115]
[1688291860155,0.2384176,30553.0,30552.0,0.02670201]
[1688291860361,0.2580566,30553.0,30552.0,0.02670201]
[1688291860956,0.2580566,30553.0,30552.0,0.0449317]
[1688291861563,0.2580566,30553.0,30552.0,0.06378115]
[1688291861761,0.2580566,30553.0,30552.0,0.06384115]
[1688291862055,0.2580566,30553.0,30552.0,0.06375965]
[1688291864062,0.27690605,30553.0,30552.0,0.02668051]
[1688291866664,0.2580566,30553.0,30552.0,0.02668051]
[1688291869665,0.2580566,30553.0,30552.0,0.04552996]
[1688291870054,0.2580566,30553.0,30552.0,0.06375965]
[1688291872372,0.2580566,30553.0,30552.0,0.04552996]
[1688291872673,0.2580566,30553.0,30552.0,0.06375965]
[1688291873177,0.2580566,30553.0,30552.0,0.04552996]
[1688291873362,0.2580566,30553.0,30552.0,0.06375965]
[1688291873763,0.2580566,30553.0,30552.0,0.04552996]
[1688291874573,0.2580566,30553.0,30552.0,0.04540625]
[1688291875965,0.2580566,30553.0,30552.0,0.06363594]
[1688291876571,0.2580566,30553.0,30552.0,0.04540625]
[1688291877371,0.2580566,30553.0,30552.0,0.06363594]
[1688291881877,0.2580566,30553.0,30552.0,0.0265568]
[1688291882276,0.2580566,30553.0,30552.0,0.04540625]
[1688291882487,0.2580566,30553.0,30552.0,0.06363594]
[1688291883583,0.2580566,30553.0,30552.0,0.04540625]
[1688291885581,0.2580566,30553.0,30552.0,0.06363594]
[1688291886374,0.2580566,30553.0,30552.0,0.04540625]
[1688291886775,0.2580566,30553.0,30552.0,0.06363594]
[1688291889480,0.2580566,30553.0,30552.0,0.04534289]
[1688291889986,0.2580566,30553.0,30552.0,0.06357258]
[1688291891280,0.21156813,30553.0,30552.0,0.27577258]
[1688291891583,0.21079268,30553.0,30552.0,0.27427258]
[1688291893191,0.21259268,30553.0,30552.0,0.27367258]
[1688291906194,0.21259268,30553.0,30552.0,0.27351689]
[1688291906598,0.2122,30553.0,30552.0,0.27351689]
[1688291906794,0.2122,30553.0,30552.0,0.23643775]
[1688291907098,0.231839,30553.0,30552.0,0.04456744]
[1688291907798,0.231839,30553.0,30552.0,0.06341689]
[1688291908493,0.231839,30553.0,30552.0,0.0451872]
[1688291908998,0.231839,30553.0,30552.0,0.06341689]
[1688291910799,0.231839,30553.0,30552.0,0.0451872]
[1688291912101,0.231839,30553.0,30552.0,0.06341689]
[1688291914596,0.231839,30553.0,30552.0,0.0451872]
[1688291915197,0.231839,30553.0,30552.0,0.06341689]
[1688291915699,0.231839,30553.0,30552.0,0.0451872]
[1688291916107,0.231839,30553.0,30552.0,0.06341689]
[1688291918522,0.81119522,30555.0,30552.0,0.27371689]
[1688291918523,0.61350122,30555.0,30552.0,0.27371689]
[1688291918715,0.61350122,30555.0,30554.0,0.2122]
[1688291918716,0.5119,30555.0,30554.0,0.2122]
[1688291918916,0.2122,30555.0,30554.0,0.23925171]
[1688291919217,0.2122,30555.0,30554.0,0.27633085]
[1688291923327,0.02637081,30556.0,30554.0,0.27443085]
[1688291923508,0.02637081,30556.0,30555.0,0.2106]
[1688291923715,0.93890122,30557.0,30555.0,0.27472875]
[1688291924011,0.856936,30557.0,30556.0,0.231837]
[1688291924211,0.98440333,30557.0,30556.0,0.231837]
[1688291924714,0.98497431,30557.0,30556.0,0.231837]
[1688291925622,0.98497431,30557.0,30556.0,0.25068645]
[1688291928629,0.98497431,30557.0,30556.0,0.26891614]
[1688291929019,0.88337309,30557.0,30556.0,0.26891614]
[1688291929513,0.88337309,30557.0,30556.0,0.25068645]
[1688291930726,0.88337309,30557.0,30556.0,0.231837]
[1688291930927,0.98497431,30557.0,30556.0,0.231837]
[1688291932527,0.01982282,30556.0,30555.0,0.00741261]
[1688291932731,0.23202282,30556.0,30553.0,0.631611]
[1688291932928,0.03848645,30555.0,30554.0,0.019638]
[1688291933233,0.25068645,30555.0,30554.0,0.02704842]
[1688291936219,0.25068645,30555.0,30554.0,0.00741042]
[1688291936435,0.61148645,30555.0,30552.0,0.019639]
[1688291936739,0.2118,30553.0,30552.0,0.019639]
[1688291937028,0.231439,30553.0,30552.0,0.019639]
[1688291937432,0.231439,30553.0,30552.0,0.01948159]
[1688291937831,0.25028845,30553.0,30552.0,0.01948159]
[1688291942344,0.25008924,30553.0,30552.0,0.01948159]
[1688291942638,0.23123979,30553.0,30552.0,0.01948159]
[1688291945241,0.019639,30553.0,30552.0,0.01948159]
[1688291947037,0.019639,30553.0,30552.0,0.05656073]
[1688291948343,0.019639,30553.0,30552.0,0.06396764]
[1688291949342,0.04640497,30553.0,30552.0,0.06396764]
[1688291949544,0.019639,30553.0,30552.0,0.06396764]
[1688291951941,0.019639,30553.0,30552.0,0.04573795]
[1688291952243,0.019639,30553.0,30552.0,0.06396764]
[1688291952445,0.019639,30553.0,30552.0,0.04573795]
[1688291952645,0.019639,30553.0,30552.0,0.06396764]
[1688291954433,0.3,30554.0,30552.0,0.06396764]
[1688291954744,0.3,30554.0,30553.0,0.05671714]
[1688291954948,0.3,30554.0,30553.0,0.06412255]
[1688291955144,0.3,30554.0,30553.0,0.04589286]
[1688291955334,0.319638,30554.0,30553.0,0.04589286]
[1688291956235,0.319638,30554.0,30553.0,0.06412255]
[1688291956535,0.319638,30554.0,30553.0,0.04589286]
[1688291956943,0.319638,30554.0,30553.0,0.06412255]
[1688291957144,0.319638,30554.0,30553.0,0.04579078]
[1688291959050,0.319638,30554.0,30553.0,0.02704341]
[1688291961052,0.319638,30554.0,30553.0,0.0452731]
[1688291961757,0.319638,30554.0,30553.0,0.06402048]
[1688291962053,0.319638,30554.0,30553.0,0.04579079]
[1688291964743,0.32003955,30554.0,30553.0,0.04579079]
[1688291964944,0.32003955,30554.0,30553.0,0.06402048]
[1688291966354,0.32003955,30554.0,30553.0,0.04579079]
[1688291970261,0.32003955,30554.0,30553.0,0.06402048]
[1688291970553,0.338889,30554.0,30553.0,0.02704341]
[1688291971553,0.32003955,30554.0,30553.0,0.02704341]
[1688291971753,0.32003955,30554.0,30553.0,0.0268414]
[1688291971956,0.32003955,30554.0,30553.0,0.04558878]
[1688291974153,0.32003955,30554.0,30553.0,0.0268414]
[1688291977572,0.32003955,30554.0,30553.0,0.04507109]
[1688291977869,0.32003955,30554.0,30553.0,0.04558878]
[1688291978968,0.32003955,30554.0,30553.0,0.06381847]
[1688291979266,0.32003955,30554.0,30553.0,0.04558878]
[1688291984363,0.32003955,30554.0,30553.0,0.04537415]
[1688291985473,0.32003955,30554.0,30553.0,0.06360384]
[1688291987074,0.32003955,30554.0,30553.0,0.04537415]
[1688291987765,0.319638,30554.0,30553.0,0.04537415]
[1688291989677,0.319638,30554.0,30553.0,0.07103884]
[1688291991776,0.319638,30554.0,30553.0,0.04537415]
[1688291994381,0.319638,30554.0,30553.0,0.02662677]
[1688291996477,0.319638,30554.0,30553.0,0.02654063]
[1688291997777,0.31942262,30554.0,30553.0,0.02654063]
[1688291999183,0.31942262,30554.0,30553.0,0.04528801]
[1688292001275,0.31942262,30554.0,30553.0,0.02654063]
[1688292002077,0.31942262,30554.0,30553.0,0.04528801]
[1688292006283,0.31942262,30554.0,30553.0,0.0378826]
[1688292008978,0.29978462,30554.0,30553.0,0.0378826]
[1688292009182,0.29978462,30554.0,30553.0,0.05611229]
[1688292010492,0.02665796,30555.0,30553.0,0.05611229]
[1688292010695,0.02665796,30555.0,30554.0,0.03697707]
[1688292010999,0.049094,30556.0,30554.0,0.05661507]
[1688292011209,0.049094,30556.0,30555.0,0.03697707]
[1688292011210,0.356394,30556.0,30555.0,0.03697707]
[1688292011401,0.356394,30556.0,30555.0,0.05661407]
[1688292011805,0.356394,30556.0,30555.0,0.05646267]
[1688292011806,0.45799522,30556.0,30555.0,0.05646267]
[1688292013201,0.48479254,30556.0,30555.0,0.05646267]
[1688292015208,0.12839854,30556.0,30555.0,0.05646267]
[1688292015508,0.3608,30559.0,30555.0,0.05646267]
[1688292015706,0.3608,30559.0,30556.0,0.03697707]
[1688292015906,0.3608,30559.0,30557.0,0.019636]
[1688292016108,0.00357075,30558.0,30557.0,0.019636]
[1688292016309,0.00357075,30558.0,30557.0,0.05661307]
[1688292022620,0.02320575,30558.0,30557.0,0.05661307]
[1688292031725,0.02320575,30558.0,30557.0,0.05645656]
[1688292036420,0.019635,30558.0,30557.0,0.06384213]
[1688292038125,0.019635,30558.0,30557.0,0.02686506]
[1688292038632,0.03848445,30558.0,30557.0,0.02686506]
[1688292039430,0.03848445,30558.0,30557.0,0.00738557]
[1688292039725,0.03848445,30558.0,30555.0,0.019637]
[1688292039918,0.019635,30558.0,30555.0,0.019637]
[1688292040119,0.019636,30556.0,30555.0,0.019637]
[1688292040526,0.344336,30556.0,30555.0,0.019637]
[1688292041231,0.344336,30556.0,30555.0,0.03786669]
[1688292041822,0.344336,30556.0,30555.0,0.03838438]
[1688292042024,0.344336,30556.0,30555.0,0.05661407]
[1688292042533,0.344336,30556.0,30555.0,0.03838438]
[1688292043934,0.344336,30556.0,30555.0,0.05661407]
[1688292044924,0.344336,30556.0,30555.0,0.03838438]
[1688292045533,0.344336,30556.0,30555.0,0.05661407]
[1688292045734,0.344336,30556.0,30555.0,0.03838438]
[1688292046224,0.344336,30556.0,30555.0,0.05641596]
[1688292046741,0.344336,30556.0,30555.0,0.03818627]
[1688292046931,0.344336,30556.0,30555.0,0.0455694]
[1688292047435,0.344336,30556.0,30555.0,0.02682202]
[1688292048135,0.36318545,30556.0,30555.0,0.02682202]
[1688292059537,0.36307569,30556.0,30555.0,0.02682202]
[1688292067546,0.36307569,30556.0,30555.0,0.00738313]
[1688292067942,0.36307569,30556.0,30554.0,0.069637]
[1688292068152,0.01884945,30555.0,30554.0,0.069637]
[1688292068337,0.03848645,30555.0,30554.0,0.069637]
[1688292073148,0.03848645,30555.0,30554.0,0.04976595]
[1688292073348,0.03848645,30555.0,30551.0,0.3608]
[1688292073542,0.01884945,30554.0,30551.0,0.3608]
[1688292073738,0.019639,30553.0,30550.0,0.04976595]
[1688292073944,0.3046,30552.0,30551.0,0.01964]
[1688292074148,0.34308845,30552.0,30551.0,0.01964]
[1688292074348,0.34308845,30552.0,30550.0,0.04976595]
[1688292074652,0.03848845,30551.0,30550.0,0.06940595]
[1688292077043,0.03848845,30551.0,30550.0,0.07679475]
[1688292087154,0.03848845,30551.0,30550.0,0.07659043]
[1688292092268,0.06446331,30551.0,30550.0,0.07659043]
[1688292099175,0.06446331,30551.0,30550.0,0.09482012]
[1688292099378,0.06446331,30551.0,30550.0,0.07659043]
[1688292107181,0.06446331,30551.0,30550.0,0.07651058]
[1688292107681,0.04561386,30551.0,30550.0,0.07651058]
[1688292108579,0.04561386,30551.0,30550.0,0.09525796]
[1688292109276,0.019639,30551.0,30550.0,0.11348765]
[1688292110684,0.019639,30551.0,30550.0,0.09525796]
[1688292111786,0.019639,30551.0,30550.0,0.11348765]
[1688292113577,0.019639,30551.0,30550.0,0.09525796]
[1688292117188,0.019639,30551.0,30550.0,0.11348765]
[1688292118186,0.019639,30551.0,30550.0,0.09525796]
[1688292120084,0.019639,30551.0,30550.0,0.11348765]
[1688292121285,0.019639,30551.0,30550.0,0.09515346]
[1688292121991,0.019639,30551.0,30550.0,0.11338315]
[1688292123183,0.019639,30551.0,30550.0,0.09515346]
[1688292124488,0.019639,30551.0,30550.0,0.07640608]
[1688292125087,0.03848845,30551.0,30550.0,0.07640608]
[1688292126091,0.019639,30551.0,30550.0,0.07640608]
[1688292128691,0.019639,30551.0,30550.0,0.09515346]
[1688292128891,0.019639,30551.0,30550.0,0.11338315]
[1688292129393,0.019639,30551.0,30550.0,0.09515346]
[1688292130596,0.019639,30551.0,30550.0,0.11338315]
[1688292130997,0.019639,30551.0,30550.0,0.09515346]
[1688292131396,0.019639,30551.0,30550.0,0.11338315]
[1688292131592,0.019639,30551.0,30550.0,0.09515346]
[1688292132101,0.019639,30551.0,30550.0,0.11338315]
[1688292134297,0.019639,30551.0,30550.0,0.11322552]
[1688292134992,0.12806988,30552.0,30551.0,0.0065]
[1688292135201,0.00049098,30554.0,30551.0,0.40427707]
[1688292135401,0.00049098,30554.0,30552.0,0.02807318]
[1688292136291,0.02012798,30554.0,30553.0,0.03838538]
[1688292136694,0.02012798,30554.0,30553.0,0.04681928]
[1688292138592,0.02012798,30554.0,30553.0,0.06504897]
[1688292141591,0.02012798,30554.0,30553.0,0.42584897]
[1688292146503,0.00049098,30554.0,30553.0,0.42584897]
[1688292156601,0.00049098,30554.0,30553.0,0.45237196]
[1688292160715,0.00049098,30554.0,30553.0,0.42584897]
[1688292162511,0.02012798,30554.0,30553.0,0.40761928]
[1688292163513,0.02012798,30554.0,30553.0,0.42584897]
[1688292173714,0.02012798,30554.0,30553.0,0.06504897]
[1688292174017,0.02012798,30554.0,30553.0,0.42584897]
[1688292174415,0.00049098,30554.0,30553.0,0.42584897]
[1688292189433,0.02012798,30554.0,30553.0,0.42584897]
[1688292191734,0.00049098,30554.0,30553.0,0.42584897]
[1688292196151,0.00049098,30554.0,30553.0,0.06504897]
[1688292196347,0.00049098,30554.0,30553.0,0.42584897]
[1688292201958,0.02012798,30554.0,30553.0,0.42584897]
[1688292204256,0.02012798,30554.0,30553.0,0.40761928]
[1688292204645,0.02012798,30554.0,30553.0,0.42584897]
[1688292209058,0.00049098,30554.0,30553.0,0.42584897]
[1688292215563,0.00049098,30554.0,30553.0,0.06504897]
[1688292215766,0.00049098,30554.0,30553.0,0.78664897]
[1688292219467,0.00049098,30554.0,30553.0,0.06504897]
[1688292219668,0.00049098,30554.0,30553.0,0.78664897]
[1688292226080,0.00049098,30554.0,30553.0,0.06504897]
[1688292226278,0.00049098,30554.0,30553.0,0.78664897]
[1688292233675,0.00049098,30554.0,30553.0,0.06504897]
[1688292233881,0.00049098,30554.0,30553.0,0.78664897]
[1688292240572,0.00049098,30554.0,30553.0,0.06504897]
[1688292240775,0.00049098,30554.0,30553.0,0.78664897]
[1688292243887,0.00049098,30554.0,30553.0,0.06504897]
[1688292244089,0.00049098,30554.0,30553.0,0.78664897]
[1688292244674,0.00049098,30554.0,30553.0,0.78443764]
[1688292247484,0.00049098,30554.0,30553.0,0.06283764]
[1688292247681,0.00049098,30554.0,30553.0,0.78443764]
[1688292253376,0.00049098,30554.0,30553.0,0.06283764]
[1688292253578,0.00049098,30554.0,30553.0,0.78443764]
[1688292259194,0.01402906,30555.0,30553.0,0.76569026]
[1688292259398,0.01402906,30555.0,30554.0,0.08619672]
[1688292259596,0.01402906,30555.0,30554.0,0.10583372]
[1688292259798,0.01402906,30555.0,30554.0,0.11205575]
[1688292260000,0.01402906,30555.0,30554.0,0.83365575]
[1688292263003,0.01402906,30555.0,30554.0,0.11205575]
[1688292263202,0.01402906,30555.0,30554.0,0.83365575]
[1688292273515,0.01402906,30555.0,30554.0,0.86022695]
[1688292273918,0.01402906,30555.0,30554.0,0.13862695]
[1688292274111,0.01402906,30555.0,30554.0,0.86022695]
[1688292291224,0.3159,30556.0,30554.0,0.86022695]
[1688292291430,0.30519093,30558.0,30556.0,0.019636]
[1688292291627,0.00049093,30558.0,30557.0,0.380435]
[1688292292031,0.00049093,30558.0,30557.0,0.41741207]
[1688292298826,0.30178926,30559.0,30558.0,0.06744934]
[1688292299031,0.30178926,30559.0,30558.0,0.08760203]
[1688292299428,0.30178926,30559.0,30558.0,0.10583172]
[1688292301839,0.30178926,30559.0,30558.0,0.46663172]
[1688292305632,0.32063871,30559.0,30558.0,0.44788434]
[1688292305839,0.34027271,30559.0,30558.0,0.42965465]
[1688292306143,0.32142326,30559.0,30558.0,0.42965465]
[1688292306546,0.32142326,30559.0,30558.0,0.46663172]
[1688292307548,0.32142326,30559.0,30558.0,0.10583172]
[1688292307840,0.32142326,30559.0,30558.0,0.46663172]
[1688292308046,0.32142326,30559.0,30558.0,0.44840203]
[1688292308947,0.32142326,30559.0,30558.0,0.46663172]
[1688292311348,0.32142326,30559.0,30558.0,0.46647277]
[1688292313547,0.32142326,30559.0,30558.0,0.10567277]
[1688292313850,0.32142326,30559.0,30558.0,0.46647277]
[1688292323460,0.32142326,30559.0,30558.0,0.10567277]
[1688292323645,0.32142326,30559.0,30558.0,0.46647277]
[1688292325154,0.32142326,30559.0,30558.0,0.46627055]
[1688292326258,0.30178926,30559.0,30558.0,0.46627055]
[1688292332559,0.30178926,30559.0,30558.0,0.10547055]
[1688292332756,0.30178926,30559.0,30558.0,0.46627055]
[1688292338455,0.30178926,30559.0,30558.0,0.46616291]
[1688292343561,0.30178926,30559.0,30558.0,0.49260093]
[1688292344367,0.30178926,30559.0,30558.0,0.46616291]
[1688292346175,0.32142326,30559.0,30558.0,0.46616291]
[1688292349579,0.32142326,30559.0,30558.0,0.44793322]
[1688292350080,0.32142326,30559.0,30558.0,0.46616291]
[1688292353274,0.30178926,30559.0,30558.0,0.46616291]
[1688292354879,0.30178926,30559.0,30558.0,0.82696291]
[1688292356074,0.30178926,30559.0,30558.0,0.10536291]
[1688292356270,0.30178926,30559.0,30558.0,0.82696291]
[1688292359179,0.30178926,30559.0,30558.0,0.10536291]
[1688292359379,0.30178926,30559.0,30558.0,0.82696291]
[1688292363085,0.32063871,30559.0,30558.0,0.78998584]
[1688292363680,0.32063871,30559.0,30558.0,0.80821553]
[1688292363985,0.32142326,30559.0,30558.0,0.80821553]
[1688292364188,0.32142326,30559.0,30558.0,0.44741553]
[1688292367182,0.32142326,30559.0,30558.0,0.46616291]
[1688292372294,0.32142326,30559.0,30558.0,0.44793322]
[1688292372487,0.32142326,30559.0,30558.0,0.46616291]
[1688292376898,0.32142326,30559.0,30558.0,0.10536291]
[1688292377087,0.32142326,30559.0,30558.0,0.46616291]
[1688292379605,0.32142326,30559.0,30558.0,0.44793322]
[1688292379803,0.32142326,30559.0,30558.0,0.46616291]
[1688292386098,0.32142326,30559.0,30558.0,0.82696291]
[1688292388005,0.32142326,30559.0,30558.0,0.10536291]
[1688292388202,0.32142326,30559.0,30558.0,0.46616291]
[1688292393000,0.32142326,30559.0,30558.0,0.10536291]
[1688292393307,0.32142326,30559.0,30558.0,0.82696291]
[1688292393805,0.32142326,30559.0,30558.0,0.10536291]
[1688292394008,0.32142326,30559.0,30558.0,0.82696291]
[1688292400221,0.32142326,30559.0,30558.0,0.10536291]
[1688292400403,0.32142326,30559.0,30558.0,0.82696291]
[1688292400911,0.32142326,30559.0,30558.0,0.10536291]
[1688292401107,0.32142326,30559.0,30558.0,0.82696291]
[1688292401615,0.02012385,30562.0,30558.0,0.82696291]
[1688292401802,0.02012385,30562.0,30561.0,0.380433]
[1688292402610,0.02012385,30562.0,30561.0,0.41741007]
[1688292405715,0.00049085,30562.0,30561.0,0.41741007]
[1688292406012,0.35849297,30564.0,30563.0,0.06838184]
[1688292406013,0.02649297,30564.0,30563.0,0.06838184]
[1688292406216,0.36279,30567.0,30563.0,0.42918184]
[1688292406415,0.36279,30567.0,30566.0,0.38043]
[1688292406719,0.36279,30567.0,30566.0,0.38712495]
[1688292406921,0.36825592,30567.0,30566.0,0.39917738]
[1688292407111,0.36825592,30567.0,30566.0,0.41740707]
[1688292408914,0.3951089,30567.0,30566.0,0.41740707]
[1688292410222,0.37329804,30567.0,30564.0,0.05889]
[1688292410429,0.7166479,30567.0,30563.0,0.10813157]
[1688292410919,0.01963,30565.0,30563.0,0.04924157]
[1688292411313,0.00573465,30564.0,30563.0,0.04924157]
[1688292411514,0.06244479,30564.0,30563.0,0.04924157]
[1688292413616,0.38344479,30564.0,30563.0,0.04924157]
[1688292417934,0.74424479,30564.0,30563.0,0.04924157]
[1688292422829,0.74424479,30564.0,30563.0,0.04915985]
[1688292426432,0.38344479,30564.0,30563.0,0.04915985]
[1688292426624,0.74424479,30564.0,30563.0,0.04915985]
[1688292429740,0.38344479,30564.0,30563.0,0.04915985]
[1688292430036,0.74424479,30564.0,30563.0,0.04915985]
[1688292431643,0.38344479,30564.0,30563.0,0.04915985]
[1688292431840,0.74424479,30564.0,30563.0,0.04915985]
[1688292434743,0.38344479,30564.0,30563.0,0.04915985]
[1688292435248,0.74424479,30564.0,30563.0,0.04915985]
[1688292436142,0.74424479,30564.0,30563.0,0.04895264]
[1688292441143,0.38344479,30564.0,30563.0,0.04895264]
[1688292449756,0.38344479,30564.0,30563.0,0.04879543]
[1688292461983,0.74424479,30564.0,30563.0,0.04879543]
[1688292462573,0.74424479,30564.0,30563.0,0.04856239]
[1688292469490,0.77060361,30564.0,30563.0,0.04856239]
[1688292475990,0.77060361,30564.0,30563.0,0.0484393]
[1688292477983,0.74424479,30564.0,30563.0,0.0680703]